Cogmind - Beta 10.2 @@@ ROGUE MODE // 2021.09.13 @ 19:46:54 Player: cavemonk Result: Self-destructed Performance ------------- Evolutions (0) 0 Regions Visited (4) 800 Robots Destroyed (32) 160 Value Destroyed (805) 805 Prototype IDs (29) 580 Alien Tech Used (0) 0 Bonus (300) 300 TOTAL SCORE: 2645 Bonus ------- Aligned with FarCom 300 Cogmind --------- Core Integrity 33/250 Matter 300/300 Energy 160/160 System Corruption 2% Temperature Cool (143) Movement Core (350) Ox6 Location -9/Mines Parts ------- > --- POWER (1) -------- Light Nuclear Core > --- PROPULSION (2) --- (None) > --- UTILITY (2) ------ Large Storage Unit > --- WEAPON (2) ------- (None) > --- INVENTORY (10) --- Ion Engine Large Storage Unit Large Storage Unit High-capacity Matter Pod (200) Hardened Light Armor Plating Hardened Light Armor Plating XL Autogun Array Peak State ------------ > --- POWER ------------ Light Nuclear Core > --- PROPULSION ------- Light Treads > --- UTILITY ---------- Large Storage Unit Hardened Light Armor Plating > --- WEAPON ----------- Small Laser Assault Rifle > --- INVENTORY -------- Ion Engine Large Storage Unit Large Storage Unit Large Matter Pod Hardened Light Armor Plating Hardened Light Armor Plating XL Autogun Array [Rating: 13] Favorites ----------- Power Ion Engine Engine Ion Engine Power Core Light Nuclear Core Propulsion Light Treads Treads Light Treads Leg Aluminum Leg Wheel Wheel Utility Large Storage Unit Device Improved Terrain Scanner Storage Large Storage Unit Protection Hardened Light Armor Plating Weapon Assault Rifle Energy Gun Small Laser Ballistic Gun Assault Rifle Launcher Grenade Launcher Build | -11 -10 -10 -10 -9 ------- Run | Scr Mat Min Exi Min Slots Evolved . | . . . . . Power . | . . . . . Propulsion . | . . . . . Utility . | . . . . . Weapon . | . . . . . Parts Attached 43 | 4 30 8 1 . Power 3 | . 2 1 . . Engine 2 | . 2 . . . Core 1 | . . 1 . . Reactor . | . . . . . Propulsion 19 | 2 17 . . . Treads 11 | 1 10 . . . Leg . | . . . . . Wheel 8 | 1 7 . . . Hover . | . . . . . Flight . | . . . . . Utility 6 | 1 3 1 1 . Device 2 | 1 1 . . . Storage 2 | . 1 . 1 . Processor . | . . . . . Hackware . | . . . . . Protection 2 | . 1 1 . . Artifact . | . . . . . Weapon 15 | 1 8 6 . . Energy Gun 3 | 1 1 1 . . Energy Cannon . | . . . . . Ballistic Gun 10 | . 7 3 . . Ballistic Cannon . | . . . . . Launcher 2 | . . 2 . . Special Weapon . | . . . . . Impact Weapon . | . . . . . Slashing Weapon . | . . . . . Piercing Weapon . | . . . . . Special Melee Weapon . | . . . . . Unidentified Prototypes . | . . . . . Parts Lost 11 | . 2 6 . 3 Power 1 | . . 1 . . Propulsion 1 | . . 1 . . Utility 2 | . . 1 . 1 Weapon 7 | . 2 3 . 2 Highest Loss Streak 4 | . 1 4 . 3 Average Slot Usage (%) 91 | . 96 88 85 63 Engine 8 | . 14 3 . . Core 5 | . . 7 14 14 Treads 17 | . 18 20 14 7 Wheel 4 | . 9 . . . Device 5 | . 11 . . . Storage 14 | . 14 14 14 14 Protection 7 | . 2 14 14 7 Energy Gun 6 | . 2 7 14 14 Ballistic Gun 20 | . 23 19 14 7 Naked Turns . | . . . . . Heaviest Build 30 | 14 30 30 29 . Greatest Support 40 | 20 40 40 20 . Greatest Overweight (x) 2 | 1 2 1 1 . Average Overweight (x) 1 | . 1 . 1 . Largest Inventory Capacity 10 | 6 10 10 10 10 Average Capacity 9 | 6 8 10 10 10 Most Carried 10 | 6 10 10 10 10 Average Carried 8 | 4 7 8 9 10 Final Capacity 10 | 6 10 10 10 10 Final Carried 10 | 4 10 7 10 10 Class Distribution -------------------- 100% | Mutant Dominant Class ---------------- Mutant | -10/Materials Mutant | -10/Mines Mutant | -10/Exiles Mutant | -9/Mines Resources | -11 -10 -10 -10 -9 ----------- Run | Scr Mat Min Exi Min Matter Collected 1123 | 251 652 200 20 . Remotely . | . . . . . Salvage Created 1220 | 210 804 206 . . Parts 63 | 16 39 8 . . Haulers Intercepted 2 | . 2 . . . Recyclers Shooed 1 | . . 1 . . Parts Field Recycled . | . . . . . Retrieved Matter . | . . . . . Parts Self-Destructed . | . . . . . Prevented . | . . . . . Kills | -11 -10 -10 -10 -9 ------- Run | Scr Mat Min Exi Min Combat Hostiles Destroyed 33 | . 18 15 . . Melee 1 | . 1 . . . Guns 24 | . 17 7 . . AOE 8 | . . 8 . . Classes Destroyed 8 | 2 3 3 . . Worker 1 | . . 1 . . Tunneler 5 | 5 . . . . Hauler 2 | . 2 . . . Recycler 2 | 1 . 1 . . Swarmer 3 | . 3 . . . Grunt 17 | . 15 2 . . Demolisher 2 | . . 2 . . Assembled 11 | . . 11 . . Best Kill Streak 10 | 4 4 10 . . Combat Bots Only 8 | . 4 8 . . Max Kills in Single Turn 4 | 1 1 4 . . Gunslinging 1 | . . 1 . . Exploded 4 | . . 4 . . Melee 1 | . 1 . . . Uniques/NPCs Destroyed . | . . . . . Combat | -11 -10 -10 -10 -9 -------- Run | Scr Mat Min Exi Min Damage Taken 1908 | 14 679 915 . 300 Core 217 | . 122 83 . 12 Absorbed by Shields . | . . . . . Core Remaining (%) 100 | 100 . . . . Volleys Fired 107 | 20 61 21 . 5 Largest 2 | 2 2 2 . 2 Hottest 80 | 80 80 60 . 60 Shots Fired 205 | 40 121 36 . 8 Gun 200 | 40 121 31 . 8 Cannon . | . . . . . Launcher 5 | . . 5 . . Special . | . . . . . Kinetic 123 | 11 82 27 . 3 Thermal 23 | . 14 4 . 5 Explosive 5 | . . 5 . . Electromagnetic 54 | 29 25 . . . Robot Hit Streak 13 | 8 13 10 . 5 Robot Miss Streak 7 | 3 4 7 . 1 Penetration Max . | . . . . . Secondary Targets 3 | . 1 2 . . Max Gunslinging Chain 1 | . 1 1 . . Shots Hit Robots 134 | 23 86 20 . 5 Core Hits 82 | 7 37 36 . 2 Critical Hits 2 | . 2 . . . Critical Kills . | . . . . . Critical Parts Destroyed 2 | . 2 . . . Melee Attacks . | . . . . . Impact . | . . . . . Slashing . | . . . . . Piercing . | . . . . . Sneak Attacks . | . . . . . Combat Hostiles . | . . . . . Follow-up Attacks . | . . . . . Damage Inflicted 2522 | 292 1116 1035 . 79 Guns 1672 | 263 1114 216 . 79 Cannons . | . . . . . Explosions 825 | 29 . 796 . . Melee . | . . . . . Ramming 25 | . 2 23 . . Kinetic 1031 | 54 747 185 . 45 Thermal 217 | 29 123 31 . 34 Explosive 796 | . . 796 . . Electromagnetic 453 | 209 244 . . . Impact . | . . . . . Slashing . | . . . . . Piercing . | . . . . . Highest Corruption 2 | . 2 2 2 2 Average Corruption 2 | . 2 2 2 2 Corruption Purged . | . . . . . Effects 24 | . 11 7 6 . Message Errors 10 | . 7 . 3 . Heat Flow Errors 5 | . 2 3 . . Energy Discharges 4 | . 1 1 2 . Data Loss (minor) 4 | . 1 2 1 . Weapon Failures 1 | . . 1 . . Overload Shots . | . . . . . Overflow Damage 73 | . . 73 . . Projectiles . | . . . . . Explosions 73 | . . 73 . . Melee . | . . . . . Knockbacks . | . . . . . Impact . | . . . . . Kinetic . | . . . . . Secondary . | . . . . . Self-Inflicted Damage 167 | 14 . 153 . . Shots 5 | 1 . 4 . . Rammed 4 | . . 4 . . Targets Rammed 5 | . 1 4 . . Kicked . | . . . . . Crushed 1 | . 1 . . . Highest Temperature 312 | 136 312 177 . 137 Average Temperature 103 | 42 140 78 . 78 Received Heat Transfer 664 | . 345 247 . 72 Effects 3 | . 3 . . . Interference 2 | . 2 . . . Short Circuit 1 | . 1 . . . Siege Activations . | . . . . . Robots Corrupted . | . . . . . Combat Hostiles . | . . . . . Parts Fried 3 | 1 2 . . . Impact Corruptions . | . . . . . Robots Melted . | . . . . . Combat Hostiles . | . . . . . Parts Melted 1 | . 1 . . . Heat Transferred 483 | . 333 75 . 75 Parts Sabotaged . | . . . . . Parts Stolen . | . . . . . Parts Stripped . | . . . . . Power Chain Reactions 1 | 1 . . . . Missiles Intercepted . | . . . . . Alert | -11 -10 -10 -10 -9 ------- Run | Scr Mat Min Exi Min Peak Influence 382 | 30 382 99 . . Initial 69 | . 19 69 . . Average 128 | 14 169 56 . . Maximum Alert Level 1 | . 1 . . . Low Security (%) 85 | 100 77 100 . 100 Level 1 14 | . 22 . . . Level 2 . | . . . . . Level 3 . | . . . . . Level 4 . | . . . . . Level 5 . | . . . . . High Security . | . . . . . Max Security . | . . . . . Squads Dispatched 6 | . 6 . . . Investigation 5 | . 5 . . . Extermination . | . . . . . Reinforcement 1 | . 1 . . . Assault . | . . . . . Garrison . | . . . . . Intercept . | . . . . . Construction Impeded . | . . . . . Haulers Reinforced . | . . . . . Stealth | -11 -10 -10 -10 -9 --------- Run | Scr Mat Min Exi Min Distress Signals 2 | . 1 1 . . Communications Jammed . | . . . . . Distress Signals . | . . . . . Times Spotted 61 | . 41 17 . 3 Peak Tracking Total 8 | . 6 8 . 3 Tactical Retreats 11 | . 10 1 . . Traps | -11 -10 -10 -10 -9 ------- Run | Scr Mat Min Exi Min Traps Triggered 5 | . 5 . . . Indirectly . | . . . . . Trap Hack Attempts . | . . . . . Triggered . | . . . . . Disarmed . | . . . . . Reprogrammed . | . . . . . Reused . | . . . . . Traps Extracted . | . . . . . Installed . | . . . . . Triggered . | . . . . . Machines | -11 -10 -10 -10 -9 ---------- Run | Scr Mat Min Exi Min Machines Disabled 3 | . 3 . . . Max in Single Turn 1 | . 1 . . . Machines Sabotaged . | . . . . . Garrisons Compromised . | . . . . . Overloaded Fab Kills . | . . . . . Fab Network Shutdowns . | . . . . . Hacking | -11 -10 -10 -10 -9 --------- Run | Scr Mat Min Exi Min Machines Accessed 11 | . 10 . 1 . Terminals 7 | . 7 . . . Fabricators . | . . . . . Repair Stations 1 | . 1 . . . Recycling Units 2 | . 2 . . . Scanalyzers . | . . . . . Garrison Access . | . . . . . Total Hacks 31 | . 30 . 1 . Successful 23 | . 22 . 1 . Failed 8 | . 8 . . . Catastrophic 2 | . 2 . . . Database Lockouts . | . . . . . Manual 21 | . 20 . 1 . Terminals 24 | . 24 . . . Fabricators . | . . . . . Repair Stations 4 | . 4 . . . Recycling Units 2 | . 2 . . . Scanalyzers . | . . . . . Garrison Access . | . . . . . Terminal Hacks 14 | . 13 . 1 . Record 1 | . 1 . . . Part Schematic 1 | . 1 . . . Robot Analysis 1 | . 1 . . . Prototype ID Bank 3 | . 3 . . . Branch Access Points 1 | . 1 . . . Alert Level 1 | . 1 . . . Unreport Threat 1 | . 1 . . . Locate Traps 1 | . 1 . . . Recall Investigation 1 | . 1 . . . Zone Layout 2 | . 2 . . . EX-Prototype ID Bank 1 | . . . 1 . Fabricator Hacks . | . . . . . Repair Station Hacks 4 | . 4 . . . Scan Component 2 | . 2 . . . Repair 2 | . 2 . . . Recycling Unit Hacks . | . . . . . Scanalyzer . | . . . . . Garrison Access Hacks . | . . . . . Unauthorized Hacks 5 | . 5 . . . Terminals 3 | . 3 . . . Track 2 | . 2 . . . Botnet 1 | . 1 . . . Fabricators . | . . . . . Repair Stations . | . . . . . Recycling Units 2 | . 2 . . . Tunnel 2 | . 2 . . . Scanalyzers . | . . . . . Garrison Access . | . . . . . Data Cores Recovered . | . . . . . Used . | . . . . . Hacking Detections 8 | . 8 . . . Full Trace Events 2 | . 2 . . . Feedback Events . | . . . . . Feedback Blocked . | . . . . . Robot Schematics Acquired . | . . . . . Robots Built . | . . . . . Matter . | . . . . . Time . | . . . . . Total Robot Build Rating . | . . . . . Part Schematics Acquired 1 | . 1 . . . Parts Built . | . . . . . Matter . | . . . . . Time . | . . . . . Total Part Build Rating . | . . . . . Parts Repaired 2 | . 2 . . . Time 52 | . 52 . . . Parts Recycled . | . . . . . Recycled Matter . | . . . . . Retrieved Matter . | . . . . . Retrieved Components . | . . . . . Parts Scanalyzed . | . . . . . Part Schematics Acquired . | . . . . . Parts Damaged . | . . . . . Bothacking | -11 -10 -10 -10 -9 ------------ Run | Scr Mat Min Exi Min Used RIF Installer . | . . . . . Robots Hacked . | . . . . . Non-combat . | . . . . . Combat . | . . . . . Robot Hacks Applied . | . . . . . Relay Couplers Released . | . . . . . Robots Rewired . | . . . . . Allies Hacked . | . . . . . Hacks Repelled . | . . . . . Allies | -11 -10 -10 -10 -9 -------- Run | Scr Mat Min Exi Min Total Allies 1 | . . 1 . . Largest Group 1 | . . 1 . . Highest-Rated Group 31 | . . 31 . . Highest-Rated Ally 31 | . . 31 . . Total Orders . | . . . . . Ally Attacks 1 | . . 1 . . Total Damage 20 | . . 20 . . Kills . | . . . . . Allies Corrupted . | . . . . . Allies Melted . | . . . . . Intel | -11 -10 -10 -10 -9 ------- Run | Scr Mat Min Exi Min Robot Analysis Total 1 | . 1 . . . Derelict Logs Recovered . | . . . . . Drone Launches . | . . . . . Drone Recoveries . | . . . . . Exploration | -11 -10 -10 -10 -9 ------------- Run | Scr Mat Min Exi Min Turns Passed 2921 | 126 1494 600 688 13 Spaces Moved 1532 | 60 789 305 378 . Core . | . . . . . Treads 881 | . 198 305 378 . Legs 20 | 20 . . . . Wheels 631 | 40 591 . . . Hover . | . . . . . Flight . | . . . . . Fastest Speed 90 | 90 90 160 180 . Average Speed 140 | 100 112 171 180 . Slowest Speed 180 | 120 180 180 180 . Overloaded Moves . | . . . . . Propulsion Burnouts . | . . . . . Robots Hopped . | . . . . . Cave-ins Triggered . | . . . . . Exploration Rate (%) 42 | 4 89 40 77 2 Regions Visited 4 Branch Regions 3 Pre-discovered Areas 2 | . 2 . . . Known Exits Taken 1 | . 1 . . . Unknown Exits Taken 3 | 1 . 1 1 . Scrap Searched . | . . . . . Spaces Dug 7 | . . 7 . . Terrain Destroyed 39 | 4 . 35 . . Melee . | . . . . . Projectile . | . . . . . AOE 39 | 4 . 35 . . Terrain Rammed . | . . . . . Walls Destroyed . | . . . . . Machines Disabled . | . . . . . Actions | -11 -10 -10 -10 -9 --------- Run | Scr Mat Min Exi Min Total 2095 | 89 1272 340 389 5 Wait 351 | . 348 3 . . Move 1528 | 59 788 304 377 . Hop . | . . . . . Pick Up 29 | 2 22 . 5 . Fast Attach 9 | 1 6 2 . . Attach 10 | 2 5 3 . . Detach 1 | . 1 . . . Swap 24 | 1 19 3 1 . Drop 31 | 4 21 . 6 . Fire 107 | 20 61 21 . 5 Melee . | . . . . . Ram . | . . . . . Kick . | . . . . . Crush 5 | . 1 4 . . Escape Stasis . | . . . . . Rewire . | . . . . . Trap . | . . . . . Miscellaneous . | . . . . . Route ------- -11/Scrapyard -10/Materials (discovered 5 exits: [*Mat x3] / *Min x2) -10/Mines (discovered 3 exits: [*Mat x2] / *Exi) -10/Exiles (discovered 2 exits: [*Min x2]) -9/Mines History --------- Turn | Location | Event 13 | -11/Scrapyard | Discovered new exit (range 3) 127 | -11/Scrapyard | Entered Materials 313 | -10/Materials | Build established: Mutant 633 | -10/Materials | Discovered new exit (range 11) 827 | -10/Materials | Discovered new exit (range 10) 911 | -10/Materials | Repaired Lgt. Treads 939 | -10/Materials | Repaired Lgt. Treads 974 | -10/Materials | Identified exit to Mines 1184 | -10/Materials | Discovered new exit (range 12) 1314 | -10/Materials | Discovered new exit (range 15) 1621 | -10/Materials | Entered Mines 1624 | -10/Mines | Received a Mining Laser from a helpful Derelict 1687 | -10/Mines | Discovered new exit (range 8) 1741 | -10/Mines | Assembled infested the area 1762 | -10/Mines | Core integrity fell below 50% 1813 | -10/Mines | Destroyed 8 combat bots 1848 | -10/Mines | Discovered new exit (range 4) 1897 | -10/Mines | Core integrity fell below 20% 1921 | -10/Mines | Lost 4 parts (1n1u2w) 2212 | -10/Mines | Deemed a non-threat by the Exiles lab entrance 2214 | -10/Mines | Discovered new exit (range 5) 2221 | -10/Mines | Entered Exiles 2252 | -10/Exiles | Discovered new exit (range 15) 2277 | -10/Exiles | Met 8R-AWN 2352 | -10/Exiles | Met EX-HEX 2413 | -10/Exiles | Met EX-BIN 2437 | -10/Exiles | Aligned with FarCom system 2440 | -10/Exiles | Given EX-Vault access code 2480 | -10/Exiles | Opened EX-Vault 2498 | -10/Exiles | Found XL Autogun Array 2533 | -10/Exiles | Warned to stay clear of 0b10 Research branches 2584 | -10/Exiles | Met EX-DEC 2641 | -10/Exiles | Visited The Gauntlet 2893 | -10/Exiles | Discovered new exit (range 10) 2909 | -10/Exiles | Left Exiles lab with XL Autogun Array 2909 | -10/Exiles | Entered Mines 2922 | -9/Mines | Self-destructed Last Messages --------------- sneak in here and steal a few of HEX's prototypes. 02559_ System corrupted: Component data lost. EX-DEC: Ah I see we have a visitor. One wrong move in here and I'll invert your atomic chain! 02586_ EX-DEC: "Oops, I hope HEX didn't hear that..." 02626_ WSE8#PZYEK,0Q9UFACZVNVM4%S9C 8OWRE6U G 02643_ System corrupted: Energy discharge (-36). 02814_ Dropped Lrg. Storage Unit. 02852_ Extracted 10 matter. 02854_ Dropped Lrg. Matter Pod. 02854_ Acquired Hcp. Matter Pod. 02855_ Extracted 10 matter. 02893_ EXIT=FOUND LOCATION=UNKNOWN GOAL=ESCAPE 02909_ Receiving FarCom transmissions... 02911_ Lgt. Treads severed. 02918_ Assault Rifle destroyed. 02918_ Hrd. Light Armor Plating destroyed. 02921_ Sml. Laser destroyed. Map ----- +----------------------------------------------------+ | ?????????????????????????????? | | ?????????????????????????????? | | ?????????????????????????????? | | ?????????????????????????????? | | ?????????????????????????????? | | ?????????????????????????????? | | ?????????????????????????????? | | ?????????????????????????????? | | ?????????????????????????????? | | ?????????????????????????????? | | ?????????????????????????????? | | ?????????????????????????????? | | ?????????????????????????????? | | ?????????????????????????????? | | ?????????????????????????????? | | ?????????????????????????????? | | ?????????????????????????????? | | ?????????????????????????????? | | ?????????????????????????????? | | ?????????????????????#???????? | | ????????????????????## ??????? | | ????????????????##### #?????? | | ????????????????? #????? | | ???????????????????# g###?? | | ????????????????????# gl #?? | | ?????????????????????# @ #? | | ?????????????????????# #? | | ?????????????????????# # ##? | | ?????????????????????# ####?? | | ?????????????????????# ??????? | | ?????????????????????#???????? | | ?????????????????????????????? | | ?????????????????????????????? | | ?????????????????????????????? | | ?????????????????????????????? | | ?????????????????????????????? | | ?????????????????????????????? | | ?????????????????????????????? | | ?????????????????????????????? | | ?????????????????????????????? | | ?????????????????????????????? | | ?????????????????????????????? | | ?????????????????????????????? | | ?????????????????????????????? | | ?????????????????????????????? | | ?????????????????????????????? | | ?????????????????????????????? | | ?????????????????????????????? | | ?????????????????????????????? | | ?????????????????????????????? | +----------------------------------------------------+ Best States ------------- Heat Dissipation 25 Energy Generation 14 Energy Capacity 250 Matter Stores 300 Matter Capacity 300 Sight Range 16 Terrain Scan Range 16 Terrain Scan Density 10 Armor Coverage 150 Evasion (%) 42 Recoil Reduction 2 Item Schematics ----------------- Hcp. Storage Unit | -10/Materials | Hacked Robot Schematics ------------------ None Fabricated ------------ Nothing Alien Tech Used ----------------- None Achievements -------------- None Challenges ------------ None Game ------ Seed DiametricWarpSword Manual? 0 Play Time 00:20:54 Cumulative 274.5 hours Start 2021.09.13 @ 18:37:13 End 2021.09.13 @ 19:46:54 Sessions 2 Manual Loads 0 Difficulty Rogue Special Mode None Game No. 207 Rogue 207 Adventurer 0 Explorer 0 Win Type - Total 5 Types 5/0/0/0/0/0/0/0/0 Lore% 51 Gallery% 73 Achievement% 58 Wizard Run 0 Options --------- ASCII 0 Keyboard 0 Movement Numpad Keybinds 0 Fullscreen 2 Font 18/TerminusBold Map View 76x50 Tactical HUD 1 Map Filters NONE Filters NONE Steam 1 RUN: 986df364-ce47-4619-ada9-279bbc177773